Workbook

Sheet A
C1: CUADRO A: IDENTIFICACIÓN DE NECESIDADES DE HORAS PEDAGÓGICAS LECTIVAS
C2: REGIÓN: | L2: JUNIN
C3: NOMBRE COMPLETO DEL IEST: | L3: IESTP "MARCO"
C4: CODIGO MODULAR: | L4: 814749
C5: PROGRAMA DE ESTUDIOS: | L5: ENFERMERIA TECNICA
C6: SEDE O FILIAL:
E8: Plan de estudios | N8: Estudiantes y ambiente de aprendizaje | T8: Carga lectiva requerida
B9: Periodo académico | C9: Módulo formativo asociado | D9: Unidad Didáctica (UD) | E9: Nombre de Unidad Didáctica (UD) | F9: Créditos | G9: Tipo de competencia Específicas, Empleabilidad o Transversal | I9: Horas Semanales por UD | K9: Perfil Docente | N9: Número proyectado de estudiantes matriculados | O9: Capacidad | Q9: Proyección de número de espacios formativos | T9: Número de horas teórico-prácticas | U9: Número de horas prácticas | V9: Total de horas lectivas requeridas
H10: Horas teórico - prácticas (TP) | I10: Horas prácticas (P) | J10: Horas semanales por UD | K10: Formación Académica | L10: Experiencia específica | O10: Capacidad de ambientes de aprendizaje para hora TP | P10: Capacidad de ambientes de aprendizaje para hora P | Q10: Número de secciones teórico-prácticas | R10: Número de grupos de práctica
H11: (1) | I11: (2) | J11: (3)= (1)+(2) | N11: (4) | O11: (5) | P11: (6) | Q11: (7)=(4)/(5) | R11: (8)=(4)/(6) | T11: (9)=(1)*(7) | U11: (10)=(2)*(8) | V11: (11)=(9)+(10)
B12: Mar-Jul | C12: Módulo 1 | D12: =+"UD "&1 -> UD 1 | E12: Salud comunitaria y familiar | F12: 5 | G12: Especificas | H12: 6 | I12: =SUM(G12:H12) -> 6 | J12: =SUM(H12:I12) -> 12 | K12: Lic en enfermeria | L12: Formacion en SC | N12: 36 | O12: 36 | P12: 9 | Q12: =IF(O12>0,ROUNDUP(N12/O12,0),0) -> 1 | R12: =IF(P12>0,ROUNDUP(N12/P12,0),0) -> 4 | T12: =+H12*Q12 -> 6 | U12: 24 | V12: =SUM(T12:U12) -> 30
B13: =+B12 -> Mar-Jul | C13: =+C12 -> Módulo 1 | D13: =+"UD "&(MID(D12,3,20)*1+1) -> UD 2 | E13: Tecnicas de comunicación en salud | F13: 3 | G13: Especificas | H13: 4 | I13: =SUM(G13:H13) -> 4 | J13: =SUM(H13:I13) -> 8 | K13: Lic en enfermeria | L13: Formacion en TC | N13: 36 | O13: 36 | P13: 9 | Q13: =IF(O13>0,ROUNDUP(N13/O13,0),0) -> 1 | R13: =IF(P13>0,ROUNDUP(N13/P13,0),0) -> 4 | T13: 4 | U13: 16 | V13: =SUM(T13:U13) -> 20
B14: =+B13 -> Mar-Jul | C14: =+C13 -> Módulo 1 | D14: UD 3 | E14: Anatomia funcional | F14: 4 | G14: Especificas | H14: 4 | I14: 4 | J14: 8 | K14: Lic en enfermeria | L14: Formacion en AF | N14: 36 | O14: 36 | P14: 9 | Q14: 1 | R14: 4 | T14: 4 | U14: 16 | V14: 20
B15: =+B14 -> Mar-Jul | C15: Módulo 1 | D15: UD 4 | E15: Primeros auxilios | F15: 4 | G15: Especificas | H15: 4 | I15: =SUM(G15:H15) -> 4 | J15: =SUM(H15:I15) -> 8 | K15: Lic en enfermeria | L15: Formacion en PA | N15: 36 | O15: 36 | P15: 0 | Q15: =IF(O15>0,ROUNDUP(N15/O15,0),0) -> 1 | R15: =IF(P15>0,ROUNDUP(N15/P15,0),0) -> 0 | T15: =+H15*Q15 -> 4 | U15: =+I15*R15 -> 0 | V15: =SUM(T15:U15) -> 4
B16: =+B15 -> Mar-Jul | C16: Módulo 1 | D16: UD 5 | E16: Comunicación oral | F16: 2 | G16: Empleabilidad | H16: 2 | I16: 2 | J16: =SUM(H16:I16) -> 4 | K16: Lic en pedagogia | L16: Formacion CO | N16: 36 | O16: 36 | P16: 36 | Q16: =IF(O16>0,ROUNDUP(N16/O16,0),0) -> 1 | R16: =IF(P16>0,ROUNDUP(N16/P16,0),0) -> 1 | T16: =+H16*Q16 -> 2 | U16: =+I16*R16 -> 2 | V16: =SUM(T16:U16) -> 4
B17: =+B16 -> Mar-Jul | C17: Módulo 1 | D17: UD 6 | E17: Ofimatica | F17: 1 | G17: Empleabilidad | H17: 2 | I17: 2 | J17: =SUM(H17:I17) -> 4 | K17: Lic en computacion Formacion en C | L17: Formacion OF | N17: 36 | O17: 0 | P17: 18 | Q17: =IF(O17>0,ROUNDUP(N17/O17,0),0) -> 0 | R17: =IF(P17>0,ROUNDUP(N17/P17,0),0) -> 2 | T17: =+H17*Q17 -> 0 | U17: =+I17*R17 -> 4 | V17: =SUM(T17:U17) -> 4
D18: =+"Sub total "&C14 -> Sub total Módulo 1 | F18: =+SUMIFS(F:F,$C:$C,MID($D18,11,8)) -> 37 | H18: =+SUMIFS(H:H,$C:$C,MID($D18,11,8)) -> 46 | I18: =+SUMIFS(I:I,$C:$C,MID($D18,11,8)) -> 52 | J18: =+SUMIFS(J:J,$C:$C,MID($D18,11,8)) -> 98 | K18: - | L18: - | N18: =+SUMIFS(N:N,$C:$C,MID($D18,11,8)) -> 432 | Q18: =+SUMIFS(Q:Q,$C:$C,MID($D18,11,8)) -> 9 | R18: =+SUMIFS(R:R,$C:$C,MID($D18,11,8)) -> 34 | T18: =+SUMIFS(T:T,$C:$C,MID($D18,11,8)) -> 40 | U18: =+SUMIFS(U:U,$C:$C,MID($D18,11,8)) -> 172 | V18: =+SUMIFS(V:V,$C:$C,MID($D18,11,8)) -> 212
B19: Mar-Jul | C19: Módulo 2 | D19: =+"UD "&1 -> UD 1 | E19: Asistencia al usuario ambulatorio y hospitalizado | F19: 2 | G19: Especificas | H19: 6 | I19: =SUM(G19:H19) -> 6 | J19: =SUM(H19:I19) -> 12 | K19: Lic en enfermeria | L19: Formacion AB | N19: 60 | O19: 30 | P19: 10 | Q19: =IF(O19>0,ROUNDUP(N19/O19,0),0) -> 2 | R19: =IF(P19>0,ROUNDUP(N19/P19,0),0) -> 6 | T19: =+H19*Q19 -> 12 | U19: =+I19*R19 -> 36 | V19: =SUM(T19:U19) -> 48
B20: =+B19 -> Mar-Jul | C20: =+C19 -> Módulo 2 | D20: =+"UD "&(MID(D19,3,20)*1+1) -> UD 2 | E20: Muestras biologicas | F20: 1 | G20: Especificas | H20: 4 | I20: =SUM(G20:H20) -> 4 | J20: =SUM(H20:I20) -> 8 | K20: Lic en enfermeria | L20: Formacion MB | N20: 60 | O20: 30 | P20: 10 | Q20: =IF(O20>0,ROUNDUP(N20/O20,0),0) -> 2 | R20: =IF(P20>0,ROUNDUP(N20/P20,0),0) -> 6 | T20: 8 | U20: 24 | V20: =SUM(T20:U20) -> 32
B21: =+B20 -> Mar-Jul | C21: =+C20 -> Módulo 2 | D21: UD 3 | E21: Bioseguridad y esterilizacion | F21: 1 | G21: Especificas | H21: 4 | I21: 4 | J21: 8 | K21: Lic en enfermeria | L21: Formacion CQE | N21: 60 | O21: 30 | P21: 10 | Q21: 2 | R21: 6 | T21: 8 | U21: 24 | V21: 32
B22: =+B21 -> Mar-Jul | C22: Módulo 2 | D22: UD 4 | E22: Asistencia en la administracion de medicamentos | F22: 2 | G22: Especificas | H22: 4 | I22: =SUM(G22:H22) -> 4 | J22: =SUM(H22:I22) -> 8 | K22: Lic en enfermeria | L22: Formacion EG | N22: 60 | O22: 30 | P22: 10 | Q22: =IF(O22>0,ROUNDUP(N22/O22,0),0) -> 2 | R22: =IF(P22>0,ROUNDUP(N22/P22,0),0) -> 6 | T22: =+H22*Q22 -> 8 | U22: =+I22*R22 -> 24 | V22: =SUM(T22:U22) -> 32
B23: =+B22 -> Mar-Jul | C23: Módulo 2 | D23: UD 5 | E23: Fundamentos de investigacion e innovacion tecnologica | F23: 1 | G23: Empleabilidad | H23: 2 | I23: 2 | J23: =SUM(H23:I23) -> 4 | K23: Lic en educacion | L23: Investigaciones | N23: 60 | O23: 30 | P23: 30 | Q23: =IF(O23>0,ROUNDUP(N23/O23,0),0) -> 2 | R23: =IF(P23>0,ROUNDUP(N23/P23,0),0) -> 2 | T23: =+H23*Q23 -> 4 | U23: =+I23*R23 -> 4 | V23: =SUM(T23:U23) -> 8
B24: =+B23 -> Mar-Jul | C24: Módulo 2 | D24: UD 6 | E24: Ingles para la comunicación oral | F24: 1 | G24: Empleabilidad | H24: 2 | I24: 2 | J24: =SUM(H24:I24) -> 4 | K24: Prof dominio ingles | L24: Ingles | N24: 60 | O24: 30 | P24: 30 | Q24: =IF(O24>0,ROUNDUP(N24/O24,0),0) -> 2 | R24: =IF(P24>0,ROUNDUP(N24/P24,0),0) -> 2 | T24: =+H24*Q24 -> 4 | U24: =+I24*R24 -> 4 | V24: =SUM(T24:U24) -> 8
D25: =+"Sub total "&C18 -> Sub total | F25: =+SUMIFS(F:F,$C:$C,MID($D25,11,8)) -> 0 | H25: =+SUMIFS(H:H,$C:$C,MID($D25,11,8)) -> 0 | I25: =+SUMIFS(I:I,$C:$C,MID($D25,11,8)) -> 0 | J25: =+SUMIFS(J:J,$C:$C,MID($D25,11,8)) -> 0 | K25: - | L25: - | N25: =+SUMIFS(N:N,$C:$C,MID($D25,11,8)) -> 0 | Q25: =+SUMIFS(Q:Q,$C:$C,MID($D25,11,8)) -> 0 | R25: =+SUMIFS(R:R,$C:$C,MID($D25,11,8)) -> 0 | T25: =+SUMIFS(T:T,$C:$C,MID($D25,11,8)) -> 0 | U25: =+SUMIFS(U:U,$C:$C,MID($D25,11,8)) -> 0 | V25: =+SUMIFS(V:V,$C:$C,MID($D25,11,8)) -> 0
B26: Mar-Jul | C26: Módulo 3 | D26: =+"UD "&1 -> UD 1 | E26: Asistencia en salud materna | F26: 2 | G26: Especificas | H26: 4 | I26: 6 | J26: =SUM(H26:I26) -> 10 | K26: Lic en enfermeria | L26: Formacion SM | N26: 30 | O26: 30 | P26: 10 | Q26: =IF(O26>0,ROUNDUP(N26/O26,0),0) -> 1 | R26: =IF(P26>0,ROUNDUP(N26/P26,0),0) -> 3 | T26: =+H26*Q26 -> 4 | U26: =+I26*R26 -> 18 | V26: =SUM(T26:U26) -> 22
B27: =+B26 -> Mar-Jul | C27: =+C26 -> Módulo 3 | D27: =+"UD "&(MID(D26,3,20)*1+1) -> UD 2 | E27: Asistencia del niño y adolescente | F27: 2 | G27: Especificas | H27: 4 | I27: 6 | J27: =SUM(H27:I27) -> 10 | K27: Lic en enfermeria | L27: Formacion NA | N27: 30 | O27: 30 | P27: 10 | Q27: =IF(O27>0,ROUNDUP(N27/O27,0),0) -> 1 | R27: =IF(P27>0,ROUNDUP(N27/P27,0),0) -> 3 | T27: 4 | U27: 18 | V27: =SUM(T27:U27) -> 22
B28: =+B27 -> Mar-Jul | C28: =+C27 -> Módulo 3 | D28: UD 3 | E28: Asistencia al adulto mayor | F28: 2 | G28: Especificas | H28: 4 | I28: 6 | J28: 10 | K28: Lic en enfermeria | L28: Formacion AM | N28: 30 | O28: 30 | P28: 10 | Q28: 1 | R28: 3 | T28: 4 | U28: 18 | V28: 22
B29: =+B28 -> Mar-Jul | C29: Módulo 3 | D29: UD 4 | E29: Asistencia en salud mental | F29: 2 | G29: Especificas | H29: 4 | I29: 6 | J29: =SUM(H29:I29) -> 10 | K29: Lic en enfermeria | L29: Formacion SM | N29: 30 | O29: 30 | P29: 10 | Q29: =IF(O29>0,ROUNDUP(N29/O29,0),0) -> 1 | R29: =IF(P29>0,ROUNDUP(N29/P29,0),0) -> 3 | T29: =+H29*Q29 -> 4 | U29: =+I29*R29 -> 18 | V29: =SUM(T29:U29) -> 22
B30: =+B29 -> Mar-Jul | C30: Módulo 3 | D30: UD 5 | E30: Comportamiento etico | F30: 1 | G30: Empleabilidad | H30: 2 | I30: 3 | J30: =SUM(H30:I30) -> 5 | K30: Lic en educacion | L30: Etica y deontologia | N30: 30 | O30: 30 | P30: 30 | Q30: =IF(O30>0,ROUNDUP(N30/O30,0),0) -> 1 | R30: =IF(P30>0,ROUNDUP(N30/P30,0),0) -> 1 | T30: =+H30*Q30 -> 2 | U30: =+I30*R30 -> 3 | V30: =SUM(T30:U30) -> 5
B31: =+B30 -> Mar-Jul | C31: Módulo 3 | D31: UD 6 | E31: Oportunidades de negocio | F31: 1 | G31: Empleabilidad | H31: 2 | I31: 3 | J31: =SUM(H31:I31) -> 5 | K31: Economista | L31: Formacion negocios | N31: 30 | O31: 30 | P31: 30 | Q31: =IF(O31>0,ROUNDUP(N31/O31,0),0) -> 1 | R31: =IF(P31>0,ROUNDUP(N31/P31,0),0) -> 1 | T31: =+H31*Q31 -> 2 | U31: =+I31*R31 -> 3 | V31: =SUM(T31:U31) -> 5
D32: =+"Sub total "&C25 -> Sub total | F32: =+SUMIFS(F:F,$C:$C,MID($D32,11,8)) -> 0 | H32: =+SUMIFS(H:H,$C:$C,MID($D32,11,8)) -> 0 | I32: =+SUMIFS(I:I,$C:$C,MID($D32,11,8)) -> 0 | J32: =+SUMIFS(J:J,$C:$C,MID($D32,11,8)) -> 0 | K32: - | L32: - | N32: =+SUMIFS(N:N,$C:$C,MID($D32,11,8)) -> 0 | Q32: =+SUMIFS(Q:Q,$C:$C,MID($D32,11,8)) -> 0 | R32: =+SUMIFS(R:R,$C:$C,MID($D32,11,8)) -> 0 | T32: =+SUMIFS(T:T,$C:$C,MID($D32,11,8)) -> 0 | U32: =+SUMIFS(U:U,$C:$C,MID($D32,11,8)) -> 0 | V32: =+SUMIFS(V:V,$C:$C,MID($D32,11,8)) -> 0
B33: Ago-Dic | C33: Módulo 1 | D33: =+"UD "&1 -> UD 1 | E33: Salud Pública | F33: 5 | G33: Especificas | H33: 6 | I33: 8 | J33: =SUM(H33:I33) -> 14 | K33: Lic en enfermeria | L33: Formacion SP | N33: 36 | O33: 36 | P33: 10 | Q33: =IF(O33>0,ROUNDUP(N33/O33,0),0) -> 1 | R33: =IF(P33>0,ROUNDUP(N33/P33,0),0) -> 4 | T33: =+H33*Q33 -> 6 | U33: =+I33*R33 -> 32 | V33: =SUM(T33:U33) -> 38
B34: =+B33 -> Ago-Dic | C34: =+C33 -> Módulo 1 | D34: =+"UD "&(MID(D33,3,20)*1+1) -> UD 2 | E34: Actividades en Epidemiología y vigilancia activa | F34: 4 | G34: Especificas | H34: 4 | I34: 6 | J34: =SUM(H34:I34) -> 10 | K34: Lic en enfermeria | L34: Formacion VE | N34: 36 | O34: 36 | P34: 10 | Q34: =IF(O34>0,ROUNDUP(N34/O34,0),0) -> 1 | R34: =IF(P34>0,ROUNDUP(N34/P34,0),0) -> 4 | T34: 4 | U34: 24 | V34: =SUM(T34:U34) -> 28
B35: =+B34 -> Ago-Dic | C35: =+C34 -> Módulo 1 | D35: UD 3 | E35: Asistencia en Salud Ocupacional | F35: 3 | G35: Especificas | H35: 4 | I35: 5 | J35: 9 | K35: Lic en enfermeria | L35: Formacion SO | N35: 36 | O35: 36 | P35: 10 | Q35: 1 | R35: 4 | T35: 4 | U35: 20 | V35: 24
B36: =+B35 -> Ago-Dic | C36: Módulo 1 | D36: UD 4 | E36: Asistencia en Inmunizaciones | F36: 4 | G36: Especificas | H36: 6 | I36: 7 | J36: =SUM(H36:I36) -> 13 | K36: Lic en enfermeria | L36: Formacion INM. | N36: 36 | O36: 36 | P36: 10 | Q36: =IF(O36>0,ROUNDUP(N36/O36,0),0) -> 1 | R36: =IF(P36>0,ROUNDUP(N36/P36,0),0) -> 4 | T36: =+H36*Q36 -> 6 | U36: =+I36*R36 -> 28 | V36: =SUM(T36:U36) -> 34
B37: =+B36 -> Ago-Dic | C37: Módulo 1 | D37: UD 5 | E37: Interpretación y redacción de textos | F37: 1 | G37: Empleabilidad | H37: 2 | I37: =SUM(G37:H37) -> 2 | J37: =SUM(H37:I37) -> 4 | K37: Lic en pedagogia | L37: Formacion RT | N37: 36 | O37: 0 | P37: 36 | Q37: =IF(O37>0,ROUNDUP(N37/O37,0),0) -> 0 | R37: =IF(P37>0,ROUNDUP(N37/P37,0),0) -> 1 | T37: =+H37*Q37 -> 0 | U37: =+I37*R37 -> 2 | V37: =SUM(T37:U37) -> 2
B38: =+B37 -> Ago-Dic | C38: Módulo 1 | D38: UD 6 | E38: Aplicaciones en internet | F38: 1 | G38: Empleabilidad | H38: 2 | I38: 2 | J38: =SUM(H38:I38) -> 4 | K38: Lic en computacion Formacion en C | N38: 36 | O38: 0 | P38: 18 | Q38: =IF(O38>0,ROUNDUP(N38/O38,0),0) -> 0 | R38: =IF(P38>0,ROUNDUP(N38/P38,0),0) -> 2 | T38: =+H38*Q38 -> 0 | U38: =+I38*R38 -> 4 | V38: =SUM(T38:U38) -> 4
D39: =+"Sub total "&C32 -> Sub total | F39: =+SUMIFS(F:F,$C:$C,MID($D39,11,8)) -> 0 | H39: =+SUMIFS(H:H,$C:$C,MID($D39,11,8)) -> 0 | I39: =+SUMIFS(I:I,$C:$C,MID($D39,11,8)) -> 0 | J39: =+SUMIFS(J:J,$C:$C,MID($D39,11,8)) -> 0 | K39: - | L39: - | N39: =+SUMIFS(N:N,$C:$C,MID($D39,11,8)) -> 0 | Q39: =+SUMIFS(Q:Q,$C:$C,MID($D39,11,8)) -> 0 | R39: =+SUMIFS(R:R,$C:$C,MID($D39,11,8)) -> 0 | T39: =+SUMIFS(T:T,$C:$C,MID($D39,11,8)) -> 0 | U39: =+SUMIFS(U:U,$C:$C,MID($D39,11,8)) -> 0 | V39: =+SUMIFS(V:V,$C:$C,MID($D39,11,8)) -> 0
B40: Ago-Dic | C40: Módulo 2 | D40: =+"UD "&1 -> UD 1 | E40: Asistencia en nutrición y dietas | F40: 3 | G40: Especificas | H40: 4 | I40: 5 | J40: =SUM(H40:I40) -> 9 | K40: Lic en enfermeria | L40: Formacion ND | N40: 60 | O40: 30 | P40: 10 | Q40: =IF(O40>0,ROUNDUP(N40/O40,0),0) -> 2 | R40: =IF(P40>0,ROUNDUP(N40/P40,0),0) -> 6 | T40: =+H40*Q40 -> 8 | U40: =+I40*R40 -> 30 | V40: =SUM(T40:U40) -> 38
B41: =+B40 -> Ago-Dic | C41: =+C40 -> Módulo 2 | D41: =+"UD "&(MID(D40,3,20)*1+1) -> UD 2 | E41: Asistencia al usuario con patologías | F41: 4 | G41: Especificas | H41: 4 | I41: 6 | J41: =SUM(H41:I41) -> 10 | K41: Lic en enfermeria | L41: Formacion AH | N41: 60 | O41: 30 | P41: 10 | Q41: =IF(O41>0,ROUNDUP(N41/O41,0),0) -> 2 | R41: =IF(P41>0,ROUNDUP(N41/P41,0),0) -> 6 | T41: 8 | U41: 36 | V41: =SUM(T41:U41) -> 44
B42: =+B41 -> Ago-Dic | C42: =+C41 -> Módulo 2 | D42: UD 3 | E42: Procedimientos invasivos y no invasivos | F42: 4 | G42: Especificas | H42: 4 | I42: 6 | J42: 10 | K42: Lic en enfermeria | L42: Formacion AH | N42: 60 | O42: 30 | P42: 10 | Q42: 2 | R42: 6 | T42: 8 | U42: 36 | V42: 44
B43: =+B42 -> Ago-Dic | C43: Módulo 2 | D43: UD 4 | E43: Asistencia al usuario quirúrgico | F43: 5 | G43: Especificas | H43: 6 | I43: 8 | J43: =SUM(H43:I43) -> 14 | K43: Lic en enfermeria | L43: Formacion CQ | N43: 60 | O43: 30 | P43: 10 | Q43: =IF(O43>0,ROUNDUP(N43/O43,0),0) -> 2 | R43: =IF(P43>0,ROUNDUP(N43/P43,0),0) -> 6 | T43: =+H43*Q43 -> 12 | U43: =+I43*R43 -> 48 | V43: =SUM(T43:U43) -> 60
B44: =+B43 -> Ago-Dic | C44: Módulo 2 | D44: UD 5 | E44: Innovación tecnológica | F44: 2 | G44: Empleabilidad | H44: 2 | I44: 3 | J44: =SUM(H44:I44) -> 5 | K44: Lic en educacion | L44: Investigaciones | N44: 60 | O44: 30 | P44: 30 | Q44: =IF(O44>0,ROUNDUP(N44/O44,0),0) -> 2 | R44: =IF(P44>0,ROUNDUP(N44/P44,0),0) -> 2 | T44: =+H44*Q44 -> 4 | U44: =+I44*R44 -> 6 | V44: =SUM(T44:U44) -> 10
B45: =+B44 -> Ago-Dic | C45: Módulo 2 | D45: UD 6 | E45: Comprensión y redacción en inglés | F45: 1 | G45: Empleabilidad | H45: 2 | I45: 2 | J45: =SUM(H45:I45) -> 4 | K45: Lic en educacion | L45: Ingles | N45: 60 | O45: 30 | P45: 30 | Q45: =IF(O45>0,ROUNDUP(N45/O45,0),0) -> 2 | R45: =IF(P45>0,ROUNDUP(N45/P45,0),0) -> 2 | T45: =+H45*Q45 -> 4 | U45: =+I45*R45 -> 4 | V45: =SUM(T45:U45) -> 8
D46: =+"Sub total "&C39 -> Sub total | F46: =+SUMIFS(F:F,$C:$C,MID($D46,11,8)) -> 0 | H46: =+SUMIFS(H:H,$C:$C,MID($D46,11,8)) -> 0 | I46: =+SUMIFS(I:I,$C:$C,MID($D46,11,8)) -> 0 | J46: =+SUMIFS(J:J,$C:$C,MID($D46,11,8)) -> 0 | K46: - | L46: - | N46: =+SUMIFS(N:N,$C:$C,MID($D46,11,8)) -> 0 | Q46: =+SUMIFS(Q:Q,$C:$C,MID($D46,11,8)) -> 0 | R46: =+SUMIFS(R:R,$C:$C,MID($D46,11,8)) -> 0 | T46: =+SUMIFS(T:T,$C:$C,MID($D46,11,8)) -> 0 | U46: =+SUMIFS(U:U,$C:$C,MID($D46,11,8)) -> 0 | V46: =+SUMIFS(V:V,$C:$C,MID($D46,11,8)) -> 0
B47: Ago-Dic | C47: Módulo 3 | D47: =+"UD "&1 -> UD 1 | E47: Asistencia en fisioterapia y rehabilitación | F47: 4 | G47: Especificas | H47: 4 | I47: 6 | J47: =SUM(H47:I47) -> 10 | K47: Lic en enfermeria | L47: Formacion FR | N47: 30 | O47: 30 | P47: 10 | Q47: =IF(O47>0,ROUNDUP(N47/O47,0),0) -> 1 | R47: =IF(P47>0,ROUNDUP(N47/P47,0),0) -> 3 | T47: =+H47*Q47 -> 4 | U47: =+I47*R47 -> 18 | V47: =SUM(T47:U47) -> 22
B48: =+B47 -> Ago-Dic | C48: =+C47 -> Módulo 3 | D48: =+"UD "&(MID(D47,3,20)*1+1) -> UD 2 | E48: Asistencia en salud bucal | F48: 5 | G48: Especificas | H48: 2 | I48: 6 | J48: =SUM(H48:I48) -> 8 | K48: Lic en enfermeria | L48: Formacion SB | N48: 30 | O48: 30 | P48: 10 | Q48: =IF(O48>0,ROUNDUP(N48/O48,0),0) -> 1 | R48: =IF(P48>0,ROUNDUP(N48/P48,0),0) -> 3 | T48: 2 | U48: 18 | V48: =SUM(T48:U48) -> 20
B49: =+B48 -> Ago-Dic | C49: =+C48 -> Módulo 3 | D49: UD 3 | E49: Asistencia en medicina alternativa | F49: 4 | G49: Especificas | H49: 6 | I49: 7 | J49: 13 | K49: Lic en enfermeria | L49: Formacion MA | N49: 30 | O49: 30 | P49: 10 | Q49: 1 | R49: 3 | T49: 6 | U49: 21 | V49: 27
B50: =+B49 -> Ago-Dic | C50: Módulo 3 | D50: UD 4 | E50: Asistencia al usuario oncológico | F50: 4 | G50: Especificas | H50: 4 | I50: 6 | J50: =SUM(H50:I50) -> 10 | K50: Lic en enfermeria | L50: Formacion Oncol. | N50: 30 | O50: 30 | P50: 10 | Q50: =IF(O50>0,ROUNDUP(N50/O50,0),0) -> 1 | R50: =IF(P50>0,ROUNDUP(N50/P50,0),0) -> 3 | T50: =+H50*Q50 -> 4 | U50: =+I50*R50 -> 18 | V50: =SUM(T50:U50) -> 22
B51: =+B50 -> Ago-Dic | C51: Módulo 3 | D51: UD 5 | E51: Plan de negocios | F51: 1 | G51: Empleabilidad | H51: 2 | I51: 2 | J51: =SUM(H51:I51) -> 4 | K51: Economista | L51: Formacion negocios | N51: 30 | O51: 0 | P51: 30 | Q51: =IF(O51>0,ROUNDUP(N51/O51,0),0) -> 0 | R51: =IF(P51>0,ROUNDUP(N51/P51,0),0) -> 1 | T51: =+H51*Q51 -> 0 | U51: =+I51*R51 -> 2 | V51: =SUM(T51:U51) -> 2
B52: =+B51 -> Ago-Dic | C52: Módulo 3 | D52: UD 6 | E52: Resolución de problemas | F52: 1 | G52: Empleabilidad | H52: 2 | I52: 3 | J52: =SUM(H52:I52) -> 5 | K52: Lic Educacion | L52: Resolucion problemas | N52: 30 | O52: 30 | P52: 30 | Q52: =IF(O52>0,ROUNDUP(N52/O52,0),0) -> 1 | R52: =IF(P52>0,ROUNDUP(N52/P52,0),0) -> 1 | T52: =+H52*Q52 -> 2 | U52: =+I52*R52 -> 3 | V52: =SUM(T52:U52) -> 5
D53: =+"Sub total "&C46 -> Sub total | F53: =+SUMIFS(F:F,$C:$C,MID($D53,11,8)) -> 0 | H53: =+SUMIFS(H:H,$C:$C,MID($D53,11,8)) -> 0 | I53: =+SUMIFS(I:I,$C:$C,MID($D53,11,8)) -> 0 | J53: =+SUMIFS(J:J,$C:$C,MID($D53,11,8)) -> 0 | K53: - | L53: - | N53: =+SUMIFS(N:N,$C:$C,MID($D53,11,8)) -> 0 | Q53: =+SUMIFS(Q:Q,$C:$C,MID($D53,11,8)) -> 0 | R53: =+SUMIFS(R:R,$C:$C,MID($D53,11,8)) -> 0 | T53: =+SUMIFS(T:T,$C:$C,MID($D53,11,8)) -> 0 | U53: =+SUMIFS(U:U,$C:$C,MID($D53,11,8)) -> 0 | V53: =+SUMIFS(V:V,$C:$C,MID($D53,11,8)) -> 0

Sheet B
C1: =+C3 -> Módulo formativo asociado | D1: Unidad Didáctica | E1: Nombre de Unidad Didáctica (UD) | F1: Carga lectiva requerida | G1: 0 | H1: Nombre: | I1: CARMEN ROSA CRISOSTOMO ELESCANO | J1: Nombre: | K1: TEODOLINDA JUANA ORIHUELA BENITO | L1: Nombre: | M1: ANGELICA GRACIELA MANTARI BUENDIA | N1: =+N3 -> Nombre: | O1: NORMA YOLANDA CONDOR LAZO | P1: =+P3 -> Nombre: | Q1: LUCY AMELIA CARDENAS ILLESCAS | R1: =+R3 -> Nombre: | S1: JESUS ROBERTO GUTIERREZ CANGAHUALA | T1: =+T3 -> Nombre: | U1: PERCY EDGAR ROJAS HUANQUI | V1: 0 | W1: Horas distribuidas | X1: =+X3 -> Necesidad de horas
B2: Plan de estudios | H2: Docentes de Carrera Pública | W2: Resultado
B3: Periodo académico | C3: Módulo formativo asociado | D3: Unidad Didáctica | E3: Nombre de Unidad Didáctica (UD) | F3: Carga lectiva requerida | H3: Nombre: | I3: CARMEN ROSA CRISOSTOMO ELESCANO | J3: Nombre: | K3: TEODOLINDA JUANA ORIHUELA BENITO | L3: Nombre: | M3: ANGELICA GRACIELA MANTARI BUENDIA | N3: Nombre: | O3: NORMA YOLANDA CONDOR LAZO | P3: Nombre: | Q3: LUCY AMELIA CARDENAS ILLESCAS | R3: Nombre: | S3: JESUS ROBERTO GUTIERREZ CANGAHUALA | T3: Nombre: | U3: PERCY EDGAR ROJAS HUANQUI | W3: Horas distribuidas | X3: Necesidad de horas
H4: DNI N° | I4: 19926825 | J4: DNI N° | K4: 20640096 | L4: DNI N° | M4: 19959386 | N4: DNI N° | O4: 20041828 | P4: DNI N° | Q4: 21252068 | R4: DNI N° | S4: 20429212 | T4: DNI N° | U4: 23271260
H5: Área de desempeño | I5: DOCENTE | J5: Área de desempeño | K5: DOCENTE | L5: Área de desempeño | M5: DOCENTE | N5: Área de desempeño | O5: DOCENTE | P5: Área de desempeño | Q5: DOCENTE | R5: Área de desempeño | S5: DOCENTE | T5: Área de desempeño | U5: DOCENTE
H6: Jornada laboral: | I6: 40 | J6: Jornada laboral: | K6: 40 | L6: Jornada laboral: | M6: 40 | N6: Jornada laboral: | O6: 40 | P6: Jornada laboral: | Q6: 40 | R6: Jornada laboral: | S6: 40 | T6: Jornada laboral: | U6: 40
H7: xxxx | I7: xxxx | J7: xxxx | K7: xxxx | L7: xxxx | M7: xxxx | N7: xxxx | O7: xxxx | P7: xxxx | Q7: xxxx | R7: xxxx | S7: xxxx | T7: xxxx | U7: xxxx | W7: (Suma de carga lectiva distribuida por UD) | X7: (Carga lectiva requerida -Horas Distribuidas)
B8: =+A!B12 -> Mar-Jul | C8: =+A!C12 -> Módulo 1 | D8: =+"UD "&1 -> UD 1 | E8: =+A!E12 -> Salud comunitaria y familiar | F8: =+A!V12 -> 30 | G8: =+B8&"_"&C8&"_"&D8 -> Mar-Jul_Módulo 1_UD 1 | P8: 8 | W8: =SUM(H8:M8) -> 0 | X8: =F8-W8 -> 30
B9: =+A!B13 -> Mar-Jul | C9: =+A!C13 -> Módulo 1 | D9: =+"UD "&(MID(D8,3,20)*1+1) -> UD 2 | E9: =+A!E13 -> Tecnicas de comunicación en salud | F9: =+A!V13 -> 20 | G9: =+B9&"_"&C9&"_"&D9 -> Mar-Jul_Módulo 1_UD 2 | J9: 5 | V9: a | W9: =SUM(H9:M9) -> 5 | X9: =F9-W9 -> 15
B10: =+A!B14 -> Mar-Jul | C10: =+A!C14 -> Módulo 1 | D10: =+"UD "&(MID(D9,3,20)*1+1) -> UD 3 | E10: =+A!E14 -> Anatomia funcional | F10: =+A!V14 -> 20 | G10: Mar-Jul_Módulo 1_UD 3 | L10: 6 | V10: b | W10: 6 | X10: 14
B11: =+A!B15 -> Mar-Jul | C11: =+A!C15 -> Módulo 1 | D11: =+"UD "&(MID(D10,3,20)*1+1) -> UD 4 | E11: =+A!E15 -> Primeros auxilios | F11: =+A!V15 -> 4 | G11: =+B11&"_"&C11&"_"&D11 -> Mar-Jul_Módulo 1_UD 4
B12: =+A!B16 -> Mar-Jul | C12: =+A!C16 -> Módulo 1 | D12: =+"UD "&(MID(D11,3,20)*1+1) -> UD 5 | E12: =+A!E16 -> Comunicación oral | F12: =+A!V16 -> 4 | G12: =+B12&"_"&C12&"_"&D12 -> Mar-Jul_Módulo 1_UD 5
B13: =+A!B17 -> Mar-Jul | C13: =+A!C17 -> Módulo 1 | D13: =+"UD "&(MID(D12,3,20)*1+1) -> UD 6 | E13: =+A!E17 -> Ofimatica | F13: =+A!V17 -> 4 | G13: =+B13&"_"&C13&"_"&D13 -> Mar-Jul_Módulo 1_UD 6
C14: =+A!D18 -> Sub total Módulo 1 | F14: =SUM(F8:F10) -> 70 | G14: _Sub total Módulo 1_ | H14: =SUM(H8:I10) -> 0 | J14: =SUM(J8:K10) -> 5 | L14: =SUM(L8:M10) -> 6 | N14: =SUM(N8:O10) -> 0 | P14: =SUM(P8:Q10) -> 8 | R14: =SUM(R8:S10) -> 0 | T14: =SUM(T8:U10) -> 0 | V14: c
B15: =+A!B19 -> Mar-Jul | C15: =+A!C19 -> Módulo 2 | D15: =+"UD "&1 -> UD 1 | E15: =+A!E19 -> Asistencia al usuario ambulatorio y hospitalizado | F15: =+A!V19 -> 48 | G15: =+B15&"_"&C15&"_"&D15 -> Mar-Jul_Módulo 2_UD 1 | J15: 8 | N15: 8 | W15: =SUM(H15:M15) -> 8 | X15: =F15-W15 -> 40
B16: =+A!B20 -> Mar-Jul | C16: =+A!C20 -> Módulo 2 | D16: =+"UD "&(MID(D15,3,20)*1+1) -> UD 2 | E16: =+A!E20 -> Muestras biologicas | F16: =+A!V20 -> 32 | G16: =+B16&"_"&C16&"_"&D16 -> Mar-Jul_Módulo 2_UD 2 | N16: 10 | V16: a | W16: =SUM(H16:M16) -> 0 | X16: =F16-W16 -> 32
B17: =+A!B21 -> Mar-Jul | C17: =+A!C21 -> Módulo 2 | D17: =+"UD "&(MID(D16,3,20)*1+1) -> UD 3 | E17: =+A!E21 -> Bioseguridad y esterilizacion | F17: =+A!V21 -> 32 | G17: Mar-Jul_Módulo 2_UD 3 | J17: 5 | P17: 5 | V17: b | W17: 5 | X17: 27
B18: =+A!B22 -> Mar-Jul | C18: =+A!C22 -> Módulo 2 | D18: =+"UD "&(MID(D17,3,20)*1+1) -> UD 4 | E18: =+A!E22 -> Asistencia en la administracion de medicamentos | F18: =+A!V22 -> 32 | G18: =+B18&"_"&C18&"_"&D18 -> Mar-Jul_Módulo 2_UD 4 | H18: 6 | L18: 6
B19: =+A!B23 -> Mar-Jul | C19: =+A!C23 -> Módulo 2 | D19: =+"UD "&(MID(D18,3,20)*1+1) -> UD 5 | E19: =+A!E23 -> Fundamentos de investigacion e innovacion tecnologica | F19: =+A!V23 -> 8 | G19: =+B19&"_"&C19&"_"&D19 -> Mar-Jul_Módulo 2_UD 5 | P19: 3
B20: =+A!B24 -> Mar-Jul | C20: =+A!C24 -> Módulo 2 | D20: =+"UD "&(MID(D19,3,20)*1+1) -> UD 6 | E20: =+A!E24 -> Ingles para la comunicación oral | F20: =+A!V24 -> 8 | G20: =+B20&"_"&C20&"_"&D20 -> Mar-Jul_Módulo 2_UD 6 | T20: 3
C21: =+A!D25 -> Sub total | F21: =SUM(F12:F14) -> 78 | G21: _Sub total _ | H21: =SUM(H12:I14) -> 0 | J21: =SUM(J12:K14) -> 5 | L21: =SUM(L12:M14) -> 6 | N21: =SUM(N12:O14) -> 0 | P21: =SUM(P12:Q14) -> 8 | R21: =SUM(R12:S14) -> 0 | T21: =SUM(T12:U14) -> 0 | V21: c
B22: =+A!B26 -> Mar-Jul | C22: =+A!C26 -> Módulo 3 | D22: =+"UD "&1 -> UD 1 | E22: =+A!E26 -> Asistencia en salud materna | F22: =+A!V26 -> 22 | G22: =+B22&"_"&C22&"_"&D22 -> Mar-Jul_Módulo 3_UD 1 | L22: 6 | W22: =SUM(H22:M22) -> 6 | X22: =F22-W22 -> 16
B23: =+A!B27 -> Mar-Jul | C23: =+A!C27 -> Módulo 3 | D23: =+"UD "&(MID(D22,3,20)*1+1) -> UD 2 | E23: =+A!E27 -> Asistencia del niño y adolescente | F23: =+A!V27 -> 22 | G23: =+B23&"_"&C23&"_"&D23 -> Mar-Jul_Módulo 3_UD 2 | H23: 6 | V23: a | W23: =SUM(H23:M23) -> 6 | X23: =F23-W23 -> 16
B24: =+A!B28 -> Mar-Jul | C24: =+A!C28 -> Módulo 3 | D24: =+"UD "&(MID(D23,3,20)*1+1) -> UD 3 | E24: =+A!E28 -> Asistencia al adulto mayor | F24: =+A!V28 -> 22 | G24: Mar-Jul_Módulo 3_UD 3 | H24: 6 | V24: b | W24: 6 | X24: 16
B25: =+A!B29 -> Mar-Jul | C25: =+A!C29 -> Módulo 3 | D25: =+"UD "&(MID(D24,3,20)*1+1) -> UD 4 | E25: =+A!E29 -> Asistencia en salud mental | F25: =+A!V29 -> 22 | G25: =+B25&"_"&C25&"_"&D25 -> Mar-Jul_Módulo 3_UD 4
B26: =+A!B30 -> Mar-Jul | C26: =+A!C30 -> Módulo 3 | D26: =+"UD "&(MID(D25,3,20)*1+1) -> UD 5 | E26: =+A!E30 -> Comportamiento etico | F26: =+A!V30 -> 5 | G26: =+B26&"_"&C26&"_"&D26 -> Mar-Jul_Módulo 3_UD 5 | P26: 3
B27: =+A!B31 -> Mar-Jul | C27: =+A!C31 -> Módulo 3 | D27: =+"UD "&(MID(D26,3,20)*1+1) -> UD 6 | E27: =+A!E31 -> Oportunidades de negocio | F27: =+A!V31 -> 5 | G27: =+B27&"_"&C27&"_"&D27 -> Mar-Jul_Módulo 3_UD 6 | R27: 3
C28: =+A!D32 -> Sub total | F28: =SUM(F19:F21) -> 94 | G28: _Sub total _ | H28: =SUM(H19:I21) -> 0 | J28: =SUM(J19:K21) -> 5 | L28: =SUM(L19:M21) -> 6 | N28: =SUM(N19:O21) -> 0 | P28: =SUM(P19:Q21) -> 11 | R28: =SUM(R19:S21) -> 0 | T28: =SUM(T19:U21) -> 3 | V28: c
B29: =+A!B33 -> Ago-Dic | C29: =+A!C33 -> Módulo 1 | D29: =+"UD "&1 -> UD 1 | E29: =+A!E33 -> Salud Pública | F29: =+A!V33 -> 38 | G29: =+B29&"_"&C29&"_"&D29 -> Ago-Dic_Módulo 1_UD 1 | N29: 8 | W29: =SUM(H29:M29) -> 0 | X29: =F29-W29 -> 38
B30: =+A!B34 -> Ago-Dic | C30: =+A!C34 -> Módulo 1 | D30: =+"UD "&(MID(D29,3,20)*1+1) -> UD 2 | E30: =+A!E34 -> Actividades en Epidemiología y vigilancia activa | F30: =+A!V34 -> 28 | G30: =+B30&"_"&C30&"_"&D30 -> Ago-Dic_Módulo 1_UD 2 | J30: 6 | V30: a | W30: =SUM(H30:M30) -> 6 | X30: =F30-W30 -> 22
B31: =+A!B35 -> Ago-Dic | C31: =+A!C35 -> Módulo 1 | D31: =+"UD "&(MID(D30,3,20)*1+1) -> UD 3 | E31: =+A!E35 -> Asistencia en Salud Ocupacional | F31: =+A!V35 -> 24 | G31: Ago-Dic_Módulo 1_UD 3 | V31: b | W31: 0 | X31: 24
B32: =+A!B36 -> Ago-Dic | C32: =+A!C36 -> Módulo 1 | D32: =+"UD "&(MID(D31,3,20)*1+1) -> UD 4 | E32: =+A!E36 -> Asistencia en Inmunizaciones | F32: =+A!V36 -> 34 | G32: =+B32&"_"&C32&"_"&D32 -> Ago-Dic_Módulo 1_UD 4 | H32: 7
B33: =+A!B37 -> Ago-Dic | C33: =+A!C37 -> Módulo 1 | D33: =+"UD "&(MID(D32,3,20)*1+1) -> UD 5 | E33: =+A!E37 -> Interpretación y redacción de textos | F33: =+A!V37 -> 2 | G33: =+B33&"_"&C33&"_"&D33 -> Ago-Dic_Módulo 1_UD 5 | N33: 8
B34: =+A!B38 -> Ago-Dic | C34: =+A!C38 -> Módulo 1 | D34: =+"UD "&(MID(D33,3,20)*1+1) -> UD 6 | E34: =+A!E38 -> Aplicaciones en internet | F34: =+A!V38 -> 4 | G34: =+B34&"_"&C34&"_"&D34 -> Ago-Dic_Módulo 1_UD 6
C35: =+A!D39 -> Sub total | F35: =SUM(F26:F28) -> 104 | G35: _Sub total _ | H35: =SUM(H26:I28) -> 0 | J35: =SUM(J26:K28) -> 5 | L35: =SUM(L26:M28) -> 6 | N35: =SUM(N26:O28) -> 0 | P35: =SUM(P26:Q28) -> 14 | R35: =SUM(R26:S28) -> 3 | T35: =SUM(T26:U28) -> 3 | V35: c
B36: =+A!B40 -> Ago-Dic | C36: =+A!C40 -> Módulo 2 | D36: =+"UD "&1 -> UD 1 | E36: =+A!E40 -> Asistencia en nutrición y dietas | F36: =+A!V40 -> 38 | G36: =+B36&"_"&C36&"_"&D36 -> Ago-Dic_Módulo 2_UD 1 | H36: 5 | J36: 5 | W36: =SUM(H36:M36) -> 10 | X36: =F36-W36 -> 28
B37: =+A!B41 -> Ago-Dic | C37: =+A!C41 -> Módulo 2 | D37: =+"UD "&(MID(D36,3,20)*1+1) -> UD 2 | E37: =+A!E41 -> Asistencia al usuario con patologías | F37: =+A!V41 -> 44 | G37: =+B37&"_"&C37&"_"&D37 -> Ago-Dic_Módulo 2_UD 2 | L37: 6 | N37: 6 | V37: a | W37: =SUM(H37:M37) -> 6 | X37: =F37-W37 -> 38
B38: =+A!B42 -> Ago-Dic | C38: =+A!C42 -> Módulo 2 | D38: =+"UD "&(MID(D37,3,20)*1+1) -> UD 3 | E38: =+A!E42 -> Procedimientos invasivos y no invasivos | F38: =+A!V42 -> 44 | G38: Ago-Dic_Módulo 2_UD 3 | L38: 6 | N38: 6 | V38: b | W38: 6 | X38: 38
B39: =+A!B43 -> Ago-Dic | C39: =+A!C43 -> Módulo 2 | D39: =+"UD "&(MID(D38,3,20)*1+1) -> UD 4 | E39: =+A!E43 -> Asistencia al usuario quirúrgico | F39: =+A!V43 -> 60 | G39: =+B39&"_"&C39&"_"&D39 -> Ago-Dic_Módulo 2_UD 4 | P39: 16
B40: =+A!B44 -> Ago-Dic | C40: =+A!C44 -> Módulo 2 | D40: =+"UD "&(MID(D39,3,20)*1+1) -> UD 5 | E40: =+A!E44 -> Innovación tecnológica | F40: =+A!V44 -> 10 | G40: =+B40&"_"&C40&"_"&D40 -> Ago-Dic_Módulo 2_UD 5 | P40: 3
B41: =+A!B45 -> Ago-Dic | C41: =+A!C45 -> Módulo 2 | D41: =+"UD "&(MID(D40,3,20)*1+1) -> UD 6 | E41: =+A!E45 -> Comprensión y redacción en inglés | F41: =+A!V45 -> 8 | G41: =+B41&"_"&C41&"_"&D41 -> Ago-Dic_Módulo 2_UD 6 | T41: 4
C42: =+A!D46 -> Sub total | F42: =SUM(F33:F35) -> 110 | G42: _Sub total _ | H42: =SUM(H33:I35) -> 0 | J42: =SUM(J33:K35) -> 5 | L42: =SUM(L33:M35) -> 6 | N42: =SUM(N33:O35) -> 8 | P42: =SUM(P33:Q35) -> 14 | R42: =SUM(R33:S35) -> 3 | T42: =SUM(T33:U35) -> 3 | V42: c
B43: =+A!B47 -> Ago-Dic | C43: =+A!C47 -> Módulo 3 | D43: =+"UD "&1 -> UD 1 | E43: =+A!E47 -> Asistencia en fisioterapia y rehabilitación | F43: =+A!V47 -> 22 | G43: =+B43&"_"&C43&"_"&D43 -> Ago-Dic_Módulo 3_UD 1 | H43: 6 | W43: =SUM(H43:M43) -> 6 | X43: =F43-W43 -> 16
B44: =+A!B48 -> Ago-Dic | C44: =+A!C48 -> Módulo 3 | D44: =+"UD "&(MID(D43,3,20)*1+1) -> UD 2 | E44: =+A!E48 -> Asistencia en salud bucal | F44: =+A!V48 -> 20 | G44: =+B44&"_"&C44&"_"&D44 -> Ago-Dic_Módulo 3_UD 2 | V44: a | W44: =SUM(H44:M44) -> 0 | X44: =F44-W44 -> 20
B45: =+A!B49 -> Ago-Dic | C45: =+A!C49 -> Módulo 3 | D45: =+"UD "&(MID(D44,3,20)*1+1) -> UD 3 | E45: =+A!E49 -> Asistencia en medicina alternativa | F45: =+A!V49 -> 27 | G45: Ago-Dic_Módulo 3_UD 3 | J45: 7 | V45: b | W45: 7 | X45: 20
B46: =+A!B50 -> Ago-Dic | C46: =+A!C50 -> Módulo 3 | D46: =+"UD "&(MID(D45,3,20)*1+1) -> UD 4 | E46: =+A!E50 -> Asistencia al usuario oncológico | F46: =+A!V50 -> 22 | G46: =+B46&"_"&C46&"_"&D46 -> Ago-Dic_Módulo 3_UD 4 | L46: 6
B47: =+A!B51 -> Ago-Dic | C47: =+A!C51 -> Módulo 3 | D47: =+"UD "&(MID(D46,3,20)*1+1) -> UD 5 | E47: =+A!E51 -> Plan de negocios | F47: =+A!V51 -> 2 | G47: =+B47&"_"&C47&"_"&D47 -> Ago-Dic_Módulo 3_UD 5 | R47: 2
B48: =+A!B52 -> Ago-Dic | C48: =+A!C52 -> Módulo 3 | D48: =+"UD "&(MID(D47,3,20)*1+1) -> UD 6 | E48: =+A!E52 -> Resolución de problemas | F48: =+A!V52 -> 5 | G48: =+B48&"_"&C48&"_"&D48 -> Ago-Dic_Módulo 3_UD 6
C49: =+A!D53 -> Sub total | F49: =SUM(F40:F42) -> 128 | G49: _Sub total _ | H49: =SUM(H40:I42) -> 0 | J49: =SUM(J40:K42) -> 5 | L49: =SUM(L40:M42) -> 6 | N49: =SUM(N40:O42) -> 8 | P49: =SUM(P40:Q42) -> 17 | R49: =SUM(R40:S42) -> 3 | T49: =SUM(T40:U42) -> 7 | V49: c
B52: Periodo académico | E52: Mar-Jul | F52: =+SUMIFS(F:F,$B:$B,$E52) -> 340 | G52: =+#REF!&"_"&B52&"_"&D52 ->  | H52: =+SUMIFS(H:H,$B:$B,$E52) -> 18 | J52: =+SUMIFS(J:J,$B:$B,$E52) -> 18 | L52: =+SUMIFS(L:L,$B:$B,$E52) -> 18 | N52: =+SUMIFS(N:N,$B:$B,$E52) -> 18 | P52: =+SUMIFS(P:P,$B:$B,$E52) -> 19 | R52: =+SUMIFS(R:R,$B:$B,$E52) -> 3 | T52: =+SUMIFS(T:T,$B:$B,$E52) -> 3 | W52: =+SUMIFS(W:W,$B:$B,$E52) -> 42 | X52: =+SUMIFS(X:X,$B:$B,$E52) -> 206
E53: Ago-Dic | F53: =+SUMIFS(F:F,$B:$B,$E53) -> 432 | G53: =+B53&"_"&C53&"_"&D53 -> __ | H53: =+SUMIFS(H:H,$B:$B,$E53) -> 18 | J53: =+SUMIFS(J:J,$B:$B,$E53) -> 18 | L53: =+SUMIFS(L:L,$B:$B,$E53) -> 18 | N53: =+SUMIFS(N:N,$B:$B,$E53) -> 28 | P53: =+SUMIFS(P:P,$B:$B,$E53) -> 19 | R53: =+SUMIFS(R:R,$B:$B,$E53) -> 2 | T53: =+SUMIFS(T:T,$B:$B,$E53) -> 4 | W53: =+SUMIFS(W:W,$B:$B,$E53) -> 41 | X53: =+SUMIFS(X:X,$B:$B,$E53) -> 244

Sheet C
B1: CUADRO C: DISTRIBUCIÓN DE HORAS PEDAGÓGICAS NO LECTIVAS
B2: Acciones a implementar para el logro de los objetivos institucionales | F2: Docentes | U2: Resultado
B3: Tipo de carga no lectiva | D3: Carga no lectiva requerida | F3: Nombre: | G3: =B!I3 -> CARMEN ROSA CRISOSTOMO ELESCANO | H3: Nombre: | I3: =B!K3 -> TEODOLINDA JUANA ORIHUELA BENITO | J3: Nombre: | K3: =B!M3 -> ANGELICA GRACIELA MANTARI BUENDIA | L3: Nombre: | M3: =B!O3 -> NORMA YOLANDA CONDOR LAZO | N3: Nombre: | O3: =B!Q3 -> LUCY AMELIA CARDENAS ILLESCAS | P3: Nombre: | Q3: =B!S3 -> JESUS ROBERTO GUTIERREZ CANGAHUALA | R3: Nombre: | S3: =B!U3 -> PERCY EDGAR ROJAS HUANQUI | U3: Horas distribuidas | V3: Necesidad de horas
F4: DNI N° | G4: =B!I4 -> 19926825 | H4: DNI N° | I4: =B!K4 -> 20640096 | J4: DNI N° | K4: =B!M4 -> 19959386 | L4: DNI N° | M4: =B!O4 -> 20041828 | N4: DNI N° | O4: =B!Q4 -> 21252068 | P4: DNI N° | Q4: =B!S4 -> 20429212 | R4: DNI N° | S4: =B!U4 -> 23271260
F5: Área de desempeño | G5: =B!I5 -> DOCENTE | H5: Área de desempeño | I5: =B!K5 -> DOCENTE | J5: Área de desempeño | K5: =B!M5 -> DOCENTE | L5: Área de desempeño | M5: =B!O5 -> DOCENTE | N5: Área de desempeño | O5: =B!Q5 -> DOCENTE | P5: Área de desempeño | Q5: =B!S5 -> DOCENTE | R5: Área de desempeño | S5: =B!U5 -> DOCENTE
F6: Jornada laboral: | G6: =B!I6 -> 40 | H6: Jornada laboral: | I6: =B!K6 -> 40 | J6: Jornada laboral: | K6: =B!M6 -> 40 | L6: Jornada laboral: | M6: =B!O6 -> 40 | N6: Jornada laboral: | O6: =B!Q6 -> 40 | P6: Jornada laboral: | Q6: =B!S6 -> 40 | R6: Jornada laboral: | S6: =B!U6 -> 40
A7: DISTRIBUCIÓN DE HORAS NO LECTIVAS Y DE GESTIÓN PEDAGÓGICA | C7: Periodo académico Marzo- Julio | U7: Suma de carga no lectiva distribuida por actividad | V7: (Carga no lectiva requerida) - (Horas distribuidas)
B8: Actividades no lectivas | F8: Horas por asignar: | G8: =G6-B!H52 -> 22 | H8: Horas por asignar: | I8: =I6-B!J52 -> 22 | J8: Horas por asignar: | K8: =K6-B!L52 -> 22 | L8: Horas por asignar: | M8: =M6-B!N52 -> 22 | N8: Horas por asignar: | O8: =O6-B!P52 -> 21 | P8: Horas por asignar: | Q8: =Q6-B!R52 -> 37 | R8: Horas por asignar: | S8: =S6-B!T52 -> 37
B9: Diseño y desarrollo Académico | F9: 5 | H9: 5 | J9: 5 | L9: 5 | N9: 5 | U9: =SUM(F9:O9) -> 25 | V9: =D9-U9 -> -25
B10: Desarrollo institucional | F10: 5 | H10: 5 | J10: 5 | L10: 5 | N10: 4 | U10: =SUM(F10:O10) -> 24 | V10: =D10-U10 -> -24
B11: Estrategias de articulación con el sector productivo | J11: 7 | U11: =SUM(F11:K11) -> 7 | V11: -7
B12: Investigación e innovación | F12: 7 | U12: 7 | V12: -7
B13: Preparación de clase | F13: 5 | H13: 5 | J13: 5 | L13: 5 | N13: 5 | U13: =SUM(F13:O13) -> 25 | V13: -25
B14: Seguimiento y servicios de apoyo al estudiante y egresado | H14: 7 | U14: 7 | V14: -7
B15: Supervisión de experiencias formativas en situaciones reales de trabajo | N15: 7 | U15: 0 | V15: 0
B16: Otras actividades relacionadas a los programas de estudios | L16: 7 | U16: 0 | V16: 0
B17: Actividades de gestión pedagógica | U17: 0 | V17: 0
B18: Sub Total | D18: =SUM(D9:D17) -> 0 | F18: =+SUM(F9:G17) -> 22 | H18: =+SUM(H9:I17) -> 22 | J18: =+SUM(J9:K17) -> 22 | L18: 22 | N18: =+SUM(N9:O17) -> 21 | P18: 0 | R18: =+SUM(R9:S17) -> 0 | U18: =SUM(U9:U17) -> 95 | V18: =SUM(V9:V17) -> -95
C19: Periodo académico Agosto - Diciembre
B20: Actividades no lectivas | F20: Horas por asignar: | G20: =G6-B!H53 -> 22 | H20: Horas por asignar: | I20: =I6-B!J53 -> 22 | J20: Horas por asignar: | K20: =K6-B!L53 -> 22 | L20: Horas por asignar: | M20: =M6-B!N53 -> 12 | N20: Horas por asignar: | O20: =O6-B!P53 -> 21 | P20: Horas por asignar: | Q20: =Q6-B!R53 -> 38 | R20: Horas por asignar: | S20: =S6-B!T53 -> 36
B21: Diseño y desarrollo Académico | F21: 5 | H21: 5 | J21: 5 | L21: 4 | N21: 5 | U21: =SUM(F21:O21) -> 24 | V21: =D21-U21 -> -24
B22: Desarrollo institucional | F22: 5 | H22: 5 | J22: 5 | L22: 4 | N22: 4 | U22: =SUM(F22:O22) -> 23 | V22: =D22-U22 -> -23
B23: Estrategias de articulación con el sector productivo | J23: 7 | U23: =SUM(F23:K23) -> 7 | V23: -7
B24: Investigación e innovación | F24: 7 | U24: 7 | V24: -7
B25: Preparación de clase | F25: 5 | H25: 5 | J25: 5 | L25: 5 | N25: 5 | U25: =SUM(F25:O25) -> 25 | V25: -25
B26: Seguimiento y servicios de apoyo al estudiante y egresado | H26: 7 | U26: 7 | V26: -7
B27: Supervisión de experiencias formativas en situaciones reales de trabajo | N27: 7 | U27: 0 | V27: 0
B28: Otras actividades relacionadas a los programas de estudios | L28: 7 | U28: 0 | V28: 0
B29: Actividades de gestión pedagógica | U29: 0 | V29: =D29-U29 -> 0
B30: Sub Total | D30: =+SUM(D21:D29) -> 0 | F30: =+SUM(F21:G29) -> 22 | H30: =+SUM(H21:I29) -> 22 | J30: =+SUM(J21:K29) -> 22 | L30: 20 | N30: =+SUM(N21:O29) -> 21 | P30: 0 | R30: =+SUM(R21:S29) -> 0 | U30: =SUM(U21:U29) -> 93 | V30: =SUM(V21:V29) -> -93
A32: HORAS NO DISTRIBUIDAS EN EL PERIODO ACADÉMICO MARZO-JULIO | F32: =G8-F18 -> 0 | H32: =I8-H18 -> 0 | J32: =K8-J18 -> 0 | L32: =M8-L18 -> 0 | N32: =O8-N18 -> 0 | P32: =Q8-P18 -> 37 | R32: =S8-R18 -> 37 | U32: =SUM(U13:U31) -> 313 | V32: =SUM(V13:V31) -> -313
A33: HORAS NO DISTRIBUIDAS EN EL PERIODO ACADÉMICO AGOSTO-DICIEMBRE | F33: =G20-F30 -> 0 | H33: =I20-H30 -> 0 | J33: =K20-J30 -> 0 | L33: =M20-L30 -> -8 | N33: =O20-N30 -> 0 | P33: =Q20-P30 -> 38 | R33: =S20-R30 -> 36 | U33: =SUM(U14:U32) -> 601 | V33: =SUM(V14:V32) -> -601
B35: * | C35: Especificar:_______________________________________________
B36: ** | C36: Directores y Responsables de unidad, área y secretaría académica

Sheet D
B1: CUADRO D: DETERMINACIÓN DE LAS POSICIONES VACANTES
B2: Plan de estudios | J2: Posiciones Vacantes | N2: Resultado
B3: Periodo académico | C3: Módulo formativo asociado | D3: Unidad Didáctica | E3: Nombre de Unidad Didáctica (UD) | F3: Necesidad de horas | G3: Perfil Docente | J3: Posición 1 | K3: =+"Posición "&(MID(J3,9,20)*1+1) -> Posición 2 | L3: =+"Posición "&(MID(K3,9,20)*1+1) -> Posición 3 | N3: Carga lectiva y no lectiva distribuida | O3: Horas no distribuidas
G4: Formación Académica | H4: Experiencia específica | J4: Jornada laboral: | K4: Jornada laboral: | L4: Jornada laboral:
C6: Distribución de horas lectivas | J6: xxxx | K6: xxxx | L6: xxxx | N6: Suma de carga distribuida por actividad | O6: (Necesidad de horas) - (Suma de carga distribuida por UD o actividad)
B7: Mar-Jul | C7: Módulo 1 | D7: UD 4 | E7: =+IFERROR(OFFSET(B!$E$7,MATCH($I7,B!$G$8:$G$4978,0),0,1,1),"Sin Datos") -> Primeros auxilios | F7: =+IFERROR(OFFSET(B!$E$7,MATCH($I7,B!$G$8:$G$4978,0),MATCH($F$3,B!$B$1:$AAX$1,0)-4,1,1),E7) -> 0 | G7: Lic. Enfermeria | H7: Formacion PA | I7: =+B7&"_"&C7&"_"&D7 -> Mar-Jul_Módulo 1_UD 4 | J7: 6 | N7: =SUM(J7:L7) -> 6 | O7: =F7-N7 -> -6
B8: =+B7 -> Mar-Jul | C8: =+C7 -> Módulo 1 | D8: UD 5 | E8: =+IFERROR(OFFSET(B!$E$7,MATCH($I8,B!$G$8:$G$4978,0),0,1,1),"Sin Datos") -> Comunicación oral | F8: =+IFERROR(OFFSET(B!$E$7,MATCH($I8,B!$G$8:$G$4978,0),MATCH($F$3,B!$B$1:$AAX$1,0)-4,1,1),E8) -> 0 | G8: Lic.pedagogia | H8: Formacion CO | I8: =+B8&"_"&C8&"_"&D8 -> Mar-Jul_Módulo 1_UD 5 | L8: 3 | N8: =SUM(J8:L8) -> 3 | O8: =F8-N8 -> -3
B9: =+B8 -> Mar-Jul | C9: =+C8 -> Módulo 1 | D9: UD 6 | E9: =+IFERROR(OFFSET(B!$E$7,MATCH($I9,B!$G$8:$G$4978,0),0,1,1),"Sin Datos") -> Ofimatica | F9: =+IFERROR(OFFSET(B!$E$7,MATCH($I9,B!$G$8:$G$4978,0),MATCH($F$3,B!$B$1:$AAX$1,0)-4,1,1),E9) -> 0 | G9: Lic.en computacion | H9: Formacion OF | I9: Mar-Jul_Módulo 1_UD 6 | L9: 2 | N9: 2 | O9: -2
C10: =+"Sub total "&C9 -> Sub total Módulo 1 | I10: _Sub total Módulo 1_ | J10: xxxx | K10: xxxx | L10: xxxx
B11: Mar-Jul | C11: Módulo 2 | D11: UD 5 | E11: =+IFERROR(OFFSET(B!$E$7,MATCH($I11,B!$G$8:$G$4978,0),0,1,1),"Sin Datos") -> Fundamentos de investigacion e innovacion tecnologica | F11: =+IFERROR(OFFSET(B!$E$7,MATCH($I11,B!$G$8:$G$4978,0),MATCH($F$3,B!$B$1:$AAX$1,0)-4,1,1),E11) -> 0 | G11: Lic.pedagogia | H11: INVESTIGACIONES | I11: =+B11&"_"&C11&"_"&D11 -> Mar-Jul_Módulo 2_UD 5 | L11: 3 | N11: =SUM(J11:L11) -> 3 | O11: =F11-N11 -> -3
B12: =+B11 -> Mar-Jul | C12: =+C11 -> Módulo 2 | D12: UD 5 | E12: =+IFERROR(OFFSET(B!$E$7,MATCH($I12,B!$G$8:$G$4978,0),0,1,1),"Sin Datos") -> Fundamentos de investigacion e innovacion tecnologica | F12: =+IFERROR(OFFSET(B!$E$7,MATCH($I12,B!$G$8:$G$4978,0),MATCH($F$3,B!$B$1:$AAX$1,0)-4,1,1),E12) -> 0 | I12: =+B12&"_"&C12&"_"&D12 -> Mar-Jul_Módulo 2_UD 5 | N12: =SUM(J12:L12) -> 0 | O12: =F12-N12 -> 0
B13: =+B12 -> Mar-Jul | C13: =+C12 -> Módulo 2 | D13: UD 5 | E13: =+IFERROR(OFFSET(B!$E$7,MATCH($I13,B!$G$8:$G$4978,0),0,1,1),"Sin Datos") -> Fundamentos de investigacion e innovacion tecnologica | F13: =+IFERROR(OFFSET(B!$E$7,MATCH($I13,B!$G$8:$G$4978,0),MATCH($F$3,B!$B$1:$AAX$1,0)-4,1,1),E13) -> 0 | I13: Mar-Jul_Módulo 2_UD 5 | N13: 0 | O13: 0
C14: =+"Sub total "&C13 -> Sub total Módulo 2 | I14: _Sub total Módulo 2_ | J14: xxxx | K14: xxxx | L14: xxxx
B15: Mar-Jul | C15: Módulo 3 | D15: UD 4 | E15: =+IFERROR(OFFSET(B!$E$7,MATCH($I15,B!$G$8:$G$4978,0),0,1,1),"Sin Datos") -> Asistencia en salud mental | F15: =+IFERROR(OFFSET(B!$E$7,MATCH($I15,B!$G$8:$G$4978,0),MATCH($F$3,B!$B$1:$AAX$1,0)-4,1,1),E15) -> 0 | I15: =+B15&"_"&C15&"_"&D15 -> Mar-Jul_Módulo 3_UD 4 | N15: =SUM(J15:L15) -> 0 | O15: =F15-N15 -> 0
B16: =+B15 -> Mar-Jul | C16: =+C15 -> Módulo 3 | D16: UD 4 | E16: =+IFERROR(OFFSET(B!$E$7,MATCH($I16,B!$G$8:$G$4978,0),0,1,1),"Sin Datos") -> Asistencia en salud mental | F16: =+IFERROR(OFFSET(B!$E$7,MATCH($I16,B!$G$8:$G$4978,0),MATCH($F$3,B!$B$1:$AAX$1,0)-4,1,1),E16) -> 0 | G16: Lic. Enfermeria | H16: Formacion SM | I16: =+B16&"_"&C16&"_"&D16 -> Mar-Jul_Módulo 3_UD 4 | K16: 6 | N16: =SUM(J16:L16) -> 6 | O16: =F16-N16 -> -6
B17: =+B16 -> Mar-Jul | C17: =+C16 -> Módulo 3 | D17: UD 6 | E17: =+IFERROR(OFFSET(B!$E$7,MATCH($I17,B!$G$8:$G$4978,0),0,1,1),"Sin Datos") -> Oportunidades de negocio | F17: =+IFERROR(OFFSET(B!$E$7,MATCH($I17,B!$G$8:$G$4978,0),MATCH($F$3,B!$B$1:$AAX$1,0)-4,1,1),E17) -> 0 | G17: Economista | H17: For. negocios | I17: Mar-Jul_Módulo 3_UD 6 | N17: 0 | O17: 0
C18: =+"Sub total "&C17 -> Sub total Módulo 3 | I18: _Sub total Módulo 3_ | J18: xxxx | K18: xxxx | L18: xxxx
B19: Ago-Dic | C19: Módulo 1 | D19: UD 3 | E19: =+IFERROR(OFFSET(B!$E$7,MATCH($I19,B!$G$8:$G$4978,0),0,1,1),"Sin Datos") -> Asistencia en Salud Ocupacional | F19: =+IFERROR(OFFSET(B!$E$7,MATCH($I19,B!$G$8:$G$4978,0),MATCH($F$3,B!$B$1:$AAX$1,0)-4,1,1),E19) -> 24 | I19: =+B19&"_"&C19&"_"&D19 -> Ago-Dic_Módulo 1_UD 3 | N19: =SUM(J19:L19) -> 0 | O19: =F19-N19 -> 24
B20: =+B19 -> Ago-Dic | C20: Módulo 1 | D20: UD 3 | E20: =+IFERROR(OFFSET(B!$E$7,MATCH($I20,B!$G$8:$G$4978,0),0,1,1),"Sin Datos") -> Asistencia en Salud Ocupacional | F20: =+IFERROR(OFFSET(B!$E$7,MATCH($I20,B!$G$8:$G$4978,0),MATCH($F$3,B!$B$1:$AAX$1,0)-4,1,1),E20) -> 24 | G20: Lic. Enfermeria | H20: Formacion SO | I20: =+B20&"_"&C20&"_"&D20 -> Ago-Dic_Módulo 1_UD 3 | K20: 5 | N20: =SUM(J20:L20) -> 5 | O20: =F20-N20 -> 19
B21: Ago-Dic | C21: Módulo 1 | D21: UD 5 | E21: =+IFERROR(OFFSET(B!$E$7,MATCH($I21,B!$G$8:$G$4978,0),0,1,1),"Sin Datos") -> Interpretación y redacción de textos | F21: =+IFERROR(OFFSET(B!$E$7,MATCH($I21,B!$G$8:$G$4978,0),MATCH($F$3,B!$B$1:$AAX$1,0)-4,1,1),E21) -> 0 | G21: Lic.pedagogia | H21: Formacion RT | I21: Ago-Dic_Módulo 1_UD 5 | L21: 2 | N21: 2 | O21: -2
B22: Ago-Dic | C22: Módulo 1 | D22: UD 6 | E22: =+IFERROR(OFFSET(B!$E$7,MATCH($I22,B!$G$8:$G$4978,0),0,1,1),"Sin Datos") -> Aplicaciones en internet | F22: =+IFERROR(OFFSET(B!$E$7,MATCH($I22,B!$G$8:$G$4978,0),MATCH($F$3,B!$B$1:$AAX$1,0)-4,1,1),E22) -> 0 | G22: Lic.en computacion | H22: Formacion COP. | I22: =+B22&"_"&C22&"_"&D22 -> Ago-Dic_Módulo 1_UD 6 | L22: 2 | N22: =SUM(J22:L22) -> 2 | O22: =F22-N22 -> -2
C23: =+"Sub total "&C21 -> Sub total Módulo 1 | I23: _Sub total Módulo 1_ | J23: xxxx | K23: xxxx | L23: xxxx
B24: Ago-Dic | C24: Módulo 2 | D24: UD 5 | E24: =+IFERROR(OFFSET(B!$E$7,MATCH($I24,B!$G$8:$G$4978,0),0,1,1),"Sin Datos") -> Innovación tecnológica | F24: =+IFERROR(OFFSET(B!$E$7,MATCH($I24,B!$G$8:$G$4978,0),MATCH($F$3,B!$B$1:$AAX$1,0)-4,1,1),E24) -> 0 | I24: =+B24&"_"&C24&"_"&D24 -> Ago-Dic_Módulo 2_UD 5 | N24: =SUM(J24:L24) -> 0 | O24: =F24-N24 -> 0
B25: =+B24 -> Ago-Dic | C25: =+C24 -> Módulo 2 | D25: UD 5 | E25: =+IFERROR(OFFSET(B!$E$7,MATCH($I25,B!$G$8:$G$4978,0),0,1,1),"Sin Datos") -> Innovación tecnológica | F25: =+IFERROR(OFFSET(B!$E$7,MATCH($I25,B!$G$8:$G$4978,0),MATCH($F$3,B!$B$1:$AAX$1,0)-4,1,1),E25) -> 0 | G25: Lic.en Educacion | H25: investigaciones | I25: =+B25&"_"&C25&"_"&D25 -> Ago-Dic_Módulo 2_UD 5 | L25: 3 | N25: =SUM(J25:L25) -> 3 | O25: =F25-N25 -> -3
B26: =+B25 -> Ago-Dic | C26: =+C25 -> Módulo 2 | D26: UD 6 | E26: =+IFERROR(OFFSET(B!$E$7,MATCH($I26,B!$G$8:$G$4978,0),0,1,1),"Sin Datos") -> Comprensión y redacción en inglés | F26: =+IFERROR(OFFSET(B!$E$7,MATCH($I26,B!$G$8:$G$4978,0),MATCH($F$3,B!$B$1:$AAX$1,0)-4,1,1),E26) -> 0 | I26: Ago-Dic_Módulo 2_UD 6 | N26: 0 | O26: 0
C27: =+"Sub total "&C26 -> Sub total Módulo 2 | I27: _Sub total Módulo 2_ | J27: xxxx | K27: xxxx | L27: xxxx
B28: Ago-Dic | C28: Módulo 3 | D28: UD 2 | E28: =+IFERROR(OFFSET(B!$E$7,MATCH($I28,B!$G$8:$G$4978,0),0,1,1),"Sin Datos") -> Asistencia en salud bucal | F28: =+IFERROR(OFFSET(B!$E$7,MATCH($I28,B!$G$8:$G$4978,0),MATCH($F$3,B!$B$1:$AAX$1,0)-4,1,1),E28) -> 20 | G28: Lic. Enfermeria | H28: Formacion SB | I28: =+B28&"_"&C28&"_"&D28 -> Ago-Dic_Módulo 3_UD 2 | J28: 6 | N28: =SUM(J28:L28) -> 6 | O28: =F28-N28 -> 14
B29: =+B28 -> Ago-Dic | C29: =+C28 -> Módulo 3 | D29: UD 5 | E29: =+IFERROR(OFFSET(B!$E$7,MATCH($I29,B!$G$8:$G$4978,0),0,1,1),"Sin Datos") -> Plan de negocios | F29: =+IFERROR(OFFSET(B!$E$7,MATCH($I29,B!$G$8:$G$4978,0),MATCH($F$3,B!$B$1:$AAX$1,0)-4,1,1),E29) -> 0 | G29: Economista | H29: For. Negocios | I29: =+B29&"_"&C29&"_"&D29 -> Ago-Dic_Módulo 3_UD 5 | N29: =SUM(J29:L29) -> 0 | O29: =F29-N29 -> 0
B30: =+B29 -> Ago-Dic | C30: =+C29 -> Módulo 3 | D30: UD 6 | E30: =+IFERROR(OFFSET(B!$E$7,MATCH($I30,B!$G$8:$G$4978,0),0,1,1),"Sin Datos") -> Resolución de problemas | F30: =+IFERROR(OFFSET(B!$E$7,MATCH($I30,B!$G$8:$G$4978,0),MATCH($F$3,B!$B$1:$AAX$1,0)-4,1,1),E30) -> 0 | G30: Lic.en Educacion | H30: Res. de problemas | I30: Ago-Dic_Módulo 3_UD 6 | L30: 3 | N30: 3 | O30: -3
C31: =+"Sub total "&C30 -> Sub total Módulo 3 | I31: _Sub total Módulo 3_ | J31: xxxx | K31: xxxx | L31: xxxx
D33: Distribución de horas no lectivas y de gestión pedagógica | I33: __Distribución de horas no lectivas y de gestión pedagógica
B34: Mar-Jul | C34: Diseño y desarrollo Académico | F34: ='C'!V9 -> -25 | G34: - | H34: - | N34: =SUM(J34:L34) -> 0 | O34: =F34-N34 -> -25
B35: Mar-Jul | C35: Desarrollo institucional | F35: ='C'!V10 -> -24 | G35: - | H35: - | N35: =SUM(J35:L35) -> 0 | O35: =F35-N35 -> -24
B36: Mar-Jul | C36: Estrategias de articulación con el sector productivo | F36: ='C'!V11 -> -7 | G36: - | H36: - | N36: 0 | O36: -7
B37: Mar-Jul | C37: Investigación e innovación | F37: ='C'!V12 -> -7 | G37: - | H37: - | N37: 0 | O37: -7
B38: Mar-Jul | C38: Preparación de clase | F38: ='C'!V13 -> -25 | G38: - | H38: - | J38: 2 | K38: 2 | N38: 4 | O38: -29
B39: Mar-Jul | C39: Seguimiento y servicios de apoyo al estudiante y egresado | F39: ='C'!V14 -> -7 | G39: - | H39: - | N39: 0 | O39: -7
B40: Mar-Jul | C40: Supervisión de experiencias formativas en situaciones reales de trabajo | F40: ='C'!V15 -> 0 | G40: - | H40: - | N40: 0 | O40: 0
B41: Mar-Jul | C41: Otras actividades relacionadas a los programas de estudios | F41: ='C'!V16 -> 0 | G41: - | H41: - | N41: 0 | O41: 0
B42: Mar-Jul | C42: Gestión Pedagógica | F42: ='C'!V17 -> 0 | G42: - | H42: - | J42: 32 | K42: 32 | N42: 64 | O42: -64
D43: TOTAL DE HORAS NO LECTIVAS Y DE GESTIÓN PEDAGÓGICA | J43: =+SUM(J34:J42) -> 34 | K43: 34 | L43: =+SUM(L34:L41) -> 0
D45: Distribución de horas no lectivas y de gestión pedagógica
B46: Ago-Dic | C46: Diseño y desarrollo Académico | F46: ='C'!V21 -> -24 | G46: - | H46: - | N46: =SUM(J46:L46) -> 0 | O46: =F46-N46 -> -24
B47: Ago-Dic | C47: Desarrollo institucional | F47: ='C'!V22 -> -23 | G47: - | H47: - | N47: =SUM(J47:L47) -> 0 | O47: =F47-N47 -> -23
B48: Ago-Dic | C48: Estrategias de articulación con el sector productivo | F48: ='C'!V23 -> -7 | G48: - | H48: - | N48: =SUM(J48:L48) -> 0 | O48: -7
B49: Ago-Dic | C49: Investigación e innovación | F49: ='C'!V24 -> -7 | G49: - | H49: - | N49: 0 | O49: -7
B50: Ago-Dic | C50: Preparación de clase | F50: ='C'!V25 -> -25 | G50: - | H50: - | J50: 2 | K50: 2 | N50: 4 | O50: -29
B51: Ago-Dic | C51: Seguimiento y servicios de apoyo al estudiante y egresado | F51: ='C'!V26 -> -7 | G51: - | H51: - | N51: 0 | O51: -7
B52: Ago-Dic | C52: Supervisión de experiencias formativas en situaciones reales de trabajo | F52: ='C'!V27 -> 0 | G52: - | H52: - | N52: 0 | O52: 0
B53: Ago-Dic | C53: Otras actividades relacionadas a los programas de estudios | F53: ='C'!V28 -> 0 | G53: - | H53: - | N53: 0 | O53: 0
B54: Ago-Dic | C54: Gestión Pedagógica | F54: ='C'!V29 -> 0 | G54: - | H54: - | J54: 32 | K54: 33 | N54: 65 | O54: -65
D55: TOTAL DE HORAS NO LECTIVAS Y DE GESTIÓN PEDAGÓGICA | J55: =+SUM(J46:J54) -> 34 | K55: 35 | L55: =+SUM(L46:L53) -> 0
B59: Periodo académico | E59: Mar-Jul | F59: Jornada laboral de la posición vacante | I59: =+#REF!&"_"&B59&"_"&D59 ->  | J59: =+SUMIFS(J:J,$B:$B,$E59) -> 40 | K59: 40 | L59: 8
E60: Ago-Dic | F60: Jornada laboral de la posición vacante | I60: =+B60&"_"&C60&"_"&D60 -> __ | J60: 40 | K60: 40 | L60: 10

Sheet E
B3: CUADRO E: RESUMEN DE POSICIONES VACANTES
B5: Perfil Docente | D5: Jornada laboral: | E5: Periodo académico Marzo - Julio | Q5: Periodo académico Agosto - Diciembre
B6: Formación Académica | C6: Experiencia específica | E6: Carga lectiva | K6: Carga no lectiva | O6: Gestión Pedagógica | Q6: Carga lectiva | W6: Carga no lectiva | AA6: Gestión Pedagógica
E7: UD 1 | G7: UD 2 | I7: UD 3 | Q7: UD 1 | S7: UD 2 | U7: UD 3
E8: Nombre | F8: Horas | G8: Nombre | H8: Horas | I8: Nombre | J8: Horas | K8: Actividad 1 | L8: Actividad 2 | M8: Actividad 3 | N8: Actividad 4 | O8: Puesto | P8: Horas | Q8: Nombre | R8: Horas | S8: Nombre | T8: Horas | U8: Nombre | V8: Horas | W8: Actividad 1 | X8: Actividad 2 | Y8: Actividad 3 | Z8: Actividad 4 | AA8: Puesto | AB8: Horas
A9: Posición 1
A10: Posición 2
A11: Posición 3
A12: Posición 4
A13: Posición 5
A14: Posición 6
A15: Posición 7
A16: Posición 8
A17: Posición 9
A18: Posición 10

Sheet Maestros (hidden)
A3: Mar-Jul | B3: Módulo 1 | C3: UD 1
A4: Ago-Dic | B4: Módulo 2 | C4: UD 2
B5: Módulo 3 | C5: UD 3
B6: Módulo 4 | C6: UD 4
B7: Módulo 5 | C7: UD 5
B8: Módulo 6 | C8: UD 6
B9: Módulo 7 | C9: UD 7
B10: Módulo 8 | C10: UD 8
B11: Módulo 9 | C11: UD 9
B12: Módulo 10 | C12: UD 10
B13: Módulo 11 | C13: UD 11
B14: Módulo 12 | C14: UD 12
B15: Módulo 13 | C15: UD 13
B16: Módulo 14 | C16: UD 14
B17: Módulo 15 | C17: UD 15
B18: Módulo 16 | C18: UD 16
B19: Módulo 17 | C19: UD 17
B20: Módulo 18 | C20: UD 18
B21: Módulo 19 | C21: UD 19
B22: Módulo 20 | C22: UD 20
